[Event "Silver Lake Festival 2022"]
[Site "Veliko Gradiste"]
[Date "2022.06.19"]
[Round "1.1"]
[White "Petrovic, Dragan R"]
[Black "Zanan, Evgeny"]
[Result "0-1"]
[ECO "B90"]
[WhiteElo "2143"]
[BlackElo "2534"]
[Annotator "RC"]
[PlyCount "58"]
[EventDate "2022.06.16"]
[EventType "swiss"]
[EventCountry "SRB"]
[SourceTitle "playchess.com"]
[Source "ChessBase"]
[SourceQuality "1"]
[TimeControl "5400+30"]

1. e4 {[%emt 0:00:04]} c5 {[%emt 0:02:11]} 2. Nf3 {[%emt 0:00:10]} d6 {[%emt 0:00:13]} 3. d4 {[%emt 0:00:24]} cxd4 {[%emt 0:00:12]} 4. Nxd4 {[%emt 0:00:06]} Nf6 {[%emt 0:00:03]} 5. Nc3 {[%emt 0:00:10]} a6 {[%emt 0:00:05]} 6. Rg1 {[%emt 0:02:43]} e5 {[%emt 0:02:44]} 7. Nb3 {[%emt 0:02:07]} Be6 {[%emt 0:00:13]} 8. g4 {[%emt 0:04:20]} d5 {[%emt 0:03:25]} 9. g5 {[%emt 0:09:02]} Nxe4 {[%emt 0:00:12]} 10. Nxe4 {[%emt 0:00:06]} dxe4 {[%emt 0:00:04]} 11. Qxd8+ {[%emt 0:00:07]} Kxd8 {[%emt 0:00:07]} 12. Bg2 {[%emt 0:01:55]} Kc7 {[%emt 0:01:48]} 13. Bxe4 {[%emt 0:01:59]} Nc6 {[%emt 0:01:25]} 14. Bd2 {[%emt 0:09:05]} h6 {[%emt 0:13:13]} 15. gxh6 {[%emt 0:04:33]} g6 {[%emt 0:06:33]} 16. f4 {[%emt 0:22:33]} Bxh6 {[%emt 0:13:33]} 17. Bxc6 {[%emt 0:07:33]} Kxc6 {[%emt 0:03:28]} 18. fxe5 {[%emt 0:00:25]} Bxb3 {[%emt 0:17:35]} 19. Bxh6 {[%emt 0:07:30]} Rxh6 {[%emt 0:00:17]} 20. axb3 {[%emt 0:00:26]} Re8 {[%emt 0:05:45]} 21. O-O-O {[%emt 0:03:07]} Rxe5 {[%emt 0:00:14]} 22. Rdf1 {[%emt 0:03:06]} f5 {[%emt 0:01:41]} 23. Rf4 {[%emt 0:03:29]} Kd6 {[%emt 0:05:45]} 24. h4 {[%emt 0:00:37]} Ke6 {[%emt 0:00:42]} 25. Rb4 {[%emt 0:00:40]} b5 {[%emt 0:00:33]} 26. Kd2 {[%emt 0:00:49]} Kd5 {[%emt 0:11:15]} 27. Ra1 {[%emt 0:01:25]} Kc5 {[%emt 0:05:53]} 28. Rf4 {[%emt 0:01:53]} g5 {[%emt 0:00:32]} 29. hxg5 {[%emt 0:01:48]} Rd6+ {[%emt 0:00:20]} 0-1

[Event "Silver Lake Festival 2022"]
[Site "Veliko Gradiste"]
[Date "2022.06.19"]
[Round "1.2"]
[White "Strikovic, Aleksa"]
[Black "Srdanovic, Jovana"]
[Result "1-0"]
[ECO "A11"]
[WhiteElo "2502"]
[BlackElo "2127"]
[Annotator "TA"]
[PlyCount "177"]
[EventDate "2022.06.16"]
[EventType "swiss"]
[EventCountry "SRB"]
[SourceTitle "playchess.com"]
[Source "ChessBase"]
[SourceQuality "1"]
[TimeControl "5400+30"]

{[%evp 9,177,9,36,40,33,43,43,43,58,57,44,53,50,60,60,48,59,62,52,50,65,54,65,58,54,33,33,47,50,33,38,39,43,30,70,54,63,50,56,45,78,56,57,56,100,56,60,49,49,63,57,49,49,49,49,49,51,47,64,40,68,0,65,41,75,60,59,49,80,35,121,0,87,91,114,123,135,102,143,141,147,108,139,144,183,141,139,137,139,139,137,137,137,134,137,137,151,140,138,116,124,125,114,88,136,143,143,136,141,139,222,71,71,71,77,77,152,138,138,8,8,8,8,8,8,8,8,8,8,8,8,8,8,8,8,8,8,0,8,0,8,8,8,8,8,0,0,0,0,0,0,0,0,0,0,0,8,8,8,8,8,8,29972,29973,29985,29986,29987,29988,29992,80]} 1. c4 {[%emt 0:00:09]} c6 {[%emt 0:00:31]} 2. Qa4 {[%emt 0:00:48]} Nf6 {[%emt 0:01:45]} 3. Nc3 {[%emt 0:00:05]} e5 {[%emt 0:01:52]} 4. Nf3 {[%emt 0:00:10] [#]} Qc7 $146 {[%emt 0:05:15]} ({Predecessor:} 4... Bd6 5. Qc2 O-O 6. d4 exd4 7. Nxd4 Be5 8. Nf3 Bxc3+ 9. bxc3 d5 10. e3 Re8 {½-½ (47) Dvoirys,S (2538)-Raznikov,D (2489) Jerusalem 2013}) 5. d4 {[%emt 0:11:05]} d6 {[%emt 0:09:37]} 6. e4 {[%emt 0:00:07] A11: English Opening: 1...c6.} Nbd7 {[%emt 0:08:30]} 7. Be2 {[%emt 0:00:26]} Be7 {[%emt 0:04:35]} 8. O-O {[%emt 0:00:34] White is slightly better.} O-O {[%emt 0:01:54]} 9. Qc2 {[%emt 0:00:13]} a5 {[%emt 0:14:04]} 10. Be3 $1 {[%emt 0:15:57]} exd4 {[%emt 0:14:09]} 11. Nxd4 {[%emt 0:00:07]} Nc5 {[%emt 0:02:03]} 12. b3 {[%emt 0:02:35]} Ng4 {[%emt 0:06:28]} 13. Bxg4 {[%emt 0:10:56]} (13. Bf4 {is more complex.} Ne6 14. Nxe6 fxe6 15. Bd2) 13... Bxg4 {[%emt 0:00:07]} 14. f3 {[%emt 0:00:18]} Bd7 {[%emt 0:03:43]} 15. Rad1 {[%emt 0:01:17]} Bf6 {[%emt 0:04:30]} 16. Qd2 {[%emt 0:02:21]} Rad8 {[%emt 0:01:10]} 17. Nde2 {[%emt 0:03:17]} Bc8 {[%emt 0:00:30]} 18. Bd4 {[%emt 0:01:03]} Bxd4+ {[%emt 0:01:25]} 19. Qxd4 {[%emt 0:00:09][%cal Oe4e5]} Qe7 {[%emt 0:03:41] Inhibits e5.} 20. Ng3 {[%emt 0:05:42]} Qe5 {[%emt 0:04:05]} 21. Rd2 {[%emt 0:06:45]} g6 {[%emt 0:07:03]} 22. Nge2 {[%emt 0:13:34]} f5 {[%emt 0:02:36]} 23. exf5 {[%emt 0:00:32]} Bxf5 {[%emt 0:00:20]} 24. Rfd1 {[%emt 0:00:24]} Qxd4+ {[%emt 0:01:55]} 25. Rxd4 {[%emt 0:00:25]} Rf6 {[%emt 0:00:04]} 26. Kf2 {[%emt 0:02:29]} h5 {[%emt 0:00:56]} 27. Ng3 {[%emt 0:00:24]} Kf7 {[%emt 0:00:16]} 28. Nxf5 {[%emt 0:01:47]} (28. h4 {keeps more tension.} Ke7 29. R4d2 Re8 30. Nce2) 28... gxf5 {[%emt 0:00:06]} 29. Ne2 {[%emt 0:00:04]} Ke7 {[%emt 0:01:06]} 30. Ng3 {[%emt 0:02:08]} Ne6 {[%emt 0:00:34]} 31. Rh4 {[%emt 0:00:09]} Ng7 {[%emt 0:00:10]} 32. Ne2 {[%emt 0:03:45]} Rh8 {[%emt 0:00:40]} 33. Rhd4 {[%emt 0:03:36]} h4 {[%emt 0:00:34]} 34. R4d2 {[%emt 0:01:34]} Nh5 {[%emt 0:00:30]} 35. Rd4 {[%emt 0:00:24]} Ng7 $1 {[%emt 0:00:20]} 36. a3 {[%emt 0:00:09][%cal Ba2a3,Ba3b4,Bb4b5][%mdl 32]} Rhh6 {[%emt 0:00:47]} 37. b4 {[%emt 0:01:40]} axb4 {[%emt 0:00:11]} 38. axb4 {[%emt 0:00:02]} Kd7 {[%emt 0:00:44]} 39. Nf4 {[%emt 0:02:02]} Nh5 {[%emt 0:00:32]} (39... Rf8 $14) 40. Ne2 {[%emt 0:04:16]} Ng7 $1 {[%emt 0:00:09]} 41. b5 {[%emt 0:00:43]} Kc7 {[%emt 0:00:31]} 42. R4d2 {[%emt 0:00:28]} Rh8 {[%emt 0:00:53]} 43. Ra1 $36 {[%emt 0:00:20][%mdl 2048] Inhibits Ra8. Keeping Black busy.} Ne6 {[%emt 0:00:26]} 44. bxc6 {[%emt 0:00:33]} Kxc6 {[%emt 0:00:05]} 45. Nc3 {[%emt 0:00:29]} Rg6 {[%emt 0:00:45]} 46. Nd5 {[%emt 0:00:21] Prevents Nf4.} Rh7 {[%emt 0:00:45] Inhibits Ne7+.} 47. Rb1 {[%emt 0:03:50]} Nc5 {[%emt 0:00:30]} 48. Rb6+ {[%emt 0:01:12]} Kd7 {[%emt 0:00:07]} 49. Nf4 {[%emt 0:00:09]} Rgh6 {[%emt 0:00:13]} 50. Rd5 {[%emt 0:00:58]} Kc7 {[%emt 0:00:39]} 51. Rb1 {[%emt 0:00:27]} Rf7 {[%emt 0:00:13]} 52. Re1 {[%emt 0:00:36]} Kc6 {[%emt 0:00:30]} 53. Re8 {[%emt 0:00:24]} Kd7 {[%emt 0:01:09]} 54. Rg8 {[%emt 0:00:39]} Ne6 {[%emt 0:00:24]} 55. Nd3 {[%emt 0:00:33] [#] aiming for Ne5+. White is more active.} Rg7 {[%emt 0:00:49]} 56. Nc5+ {[%emt 0:02:13]} Ke7 {[%emt 0:00:26]} (56... Kc6 $142 57. Rxg7 (57. Rc8+ Rc7 $17) 57... Nxg7) 57. Rxg7+ $16 {[%emt 0:00:14]} Nxg7 {[%emt 0:00:05]} 58. Nxb7 {[%emt 0:00:09][%mdl 4096] Endgame KRN-KRN} Rf6 {[%emt 0:00:42]} 59. Na5 {[%emt 0:00:40]} Ne6 {[%emt 0:00:27]} (59... Rf8 $16 {is a better defense.} 60. Rd4 h3 61. gxh3 Rc8) 60. Nb3 $2 {[%emt 0:00:06]} (60. Nc6+ $18 {and the rest is easy.} Kd7 61. Nd4) 60... Rf8 {[%emt 0:00:20]} 61. Nd4 {[%emt 0:01:13]} Nxd4 {[%emt 0:00:15]} 62. Rxd4 {[%emt 0:00:01] KR-KR} f4 {[%emt 0:00:12]} (62... Rh8 $142) 63. Re4+ {[%emt 0:00:54]} Kd7 {[%emt 0:00:10]} 64. g4 {[%emt 0:00:39]} ({White should play} 64. Kf1 $16) 64... fxg3+ $11 {[%emt 0:00:33]} 65. hxg3 {[%emt 0:00:01]} hxg3+ {[%emt 0:00:07]} 66. Kxg3 {[%emt 0:00:03]} Kc6 $1 {[%emt 0:01:22]} 67. f4 {[%emt 0:00:31]} d5 {[%emt 0:00:58]} 68. cxd5+ {[%emt 0:01:20]} Kxd5 {[%emt 0:00:05]} 69. Re5+ {[%emt 0:00:07]} Kd6 $1 {[%emt 0:00:23]} 70. Kg4 {[%emt 0:00:37]} Rg8+ {[%emt 0:00:41]} 71. Kf5 {[%emt 0:00:16]} Rf8+ $1 {[%emt 0:00:33]} 72. Ke4 {[%emt 0:00:08]} Ra8 {[%emt 0:00:06]} 73. Kf5 {[%emt 0:00:36]} Rf8+ $1 {[%emt 0:01:14]} 74. Kg4 {[%emt 0:00:02]} (74. Kg5 $5 {[%cal Re5e4]}) 74... Rg8+ {[%emt 0:00:06]} 75. Kf3 {[%emt 0:00:08]} Rg1 {[%emt 0:01:08]} 76. Re2 {[%emt 0:00:13] Black must now prevent f5.} Kd7 {[%emt 0:00:37]} 77. f5 {[%emt 0:00:14] Threatens to win with Kf4.} Rg8 $1 {[%emt 0:00:24]} 78. Kf4 {[%emt 0:00:20]} Re8 $1 {[%emt 0:00:26]} 79. Rg2 {[%emt 0:02:51] Hoping for Rg7+.} Ke7 $1 {[%emt 0:00:08]} 80. Rg7+ {[%emt 0:00:20]} Kf6 {[%emt 0:00:10]} 81. Rg6+ {[%emt 0:00:04]} Kf7 {[%emt 0:00:02]} 82. Kg5 {[%emt 0:00:04]} Ra8 {[%emt 0:00:29]} 83. Rf6+ {[%emt 0:00:20]} Kg7 {[%emt 0:00:05]} 84. Rb6 {[%emt 0:00:14] White threatens f6+ and mate.} Kf7 {[%emt 0:01:28]} 85. Rb7+ {[%emt 0:00:05]} Kf8 $2 {[%emt 0:00:54][%mdl 8192] [#] A mistake that costs the game.} (85... Kg8 $11) 86. Kg6 {[%emt 0:00:06] White mates.} Kg8 {[%emt 0:00:31]} 87. f6 {[%emt 0:00:08]} Rc8 {[%emt 0:00:25]} 88. Rg7+ {[%emt 0:00:09]} Kh8 {[%emt 0:00:51]} 89. Rh7+ {[%emt 0:00:05] Weighted Error Value: White=0.14 (very precise) /Black=0.12 (very precise)} 1-0

[Event "Silver Lake Festival 2022"]
[Site "Veliko Gradiste"]
[Date "2022.06.19"]
[Round "1.3"]
[White "Efremov, Vladislav"]
[Black "Stremavicius, Titas"]
[Result "0-1"]
[ECO "A85"]
[WhiteElo "2125"]
[BlackElo "2508"]
[Annotator "TA"]
[PlyCount "72"]
[EventDate "2022.06.16"]
[EventType "swiss"]
[EventCountry "SRB"]
[SourceTitle "playchess.com"]
[Source "ChessBase"]
[SourceQuality "1"]
[TimeControl "5400+30"]

{[%evp 10,72,25,4,25,12,22,-30,-4,-6,2,-39,-20,-15,-13,-31,-27,-24,-28,-56,-42,-43,-35,-63,0,-79,-7,-86,-89,-82,-90,-84,-72,-91,-83,-91,-79,-103,-105,-122,-68,-72,-18,-23,-12,-81,-98,-70,-68,-65,-76,-71,0,-120,-120,-116,-110,-104,-94,-95,-92,-171,-161,-397,-376]} 1. d4 {[%emt 0:00:08]} f5 {[%emt 0:00:12]} 2. c4 {[%emt 0:01:13]} Nf6 {[%emt 0:00:08]} 3. Nc3 {[%emt 0:00:43]} e6 {[%emt 0:00:08]} 4. e3 {[%emt 0:02:42]} b6 {[%emt 0:00:10]} 5. Bd3 {[%emt 0:04:06]} Bb7 {[%emt 0:00:10]} 6. f3 {[%emt 0:00:09]} g6 {[%emt 0:09:35] A85: Dutch Defence: 2 c4 Nf6 3 Nc3.} 7. Nge2 {[%emt 0:05:01]} Bg7 {[%emt 0:00:11]} 8. Qc2 {[%emt 0:15:24]} (8. O-O $142) 8... Qe7 {[%emt 0:07:53] Black has an edge.} 9. O-O {[%emt 0:26:41]} O-O {[%emt 0:08:50]} 10. a3 {[%emt 0:02:17] [#]} c5 $146 {[%emt 0:00:53]} ({Predecessor:} 10... d6 11. Bd2 Nbd7 12. e4 fxe4 13. Nxe4 Nxe4 14. Bxe4 Bxe4 15. Qxe4 e5 16. Rae1 Qf7 {1-0 (54) Ligterink,G (2430)-Bohm,H (2410) Leeuwarden 1981}) 11. b4 {[%emt 0:03:49]} Nc6 {[%emt 0:02:00]} 12. bxc5 {[%emt 0:04:46]} (12. Rb1 $5 {[%cal Rb4c5]}) 12... bxc5 {[%emt 0:00:10]} 13. Rb1 {[%emt 0:01:27]} Rab8 {[%emt 0:00:45]} 14. Na4 {[%emt 0:03:09]} d6 {[%emt 0:05:22]} 15. dxc5 {[%emt 0:03:13]} dxc5 {[%emt 0:00:05]} 16. Bb2 {[%emt 0:03:42] Inhibits Ne5.} Rbd8 {[%emt 0:02:48]} (16... Bh6 $15 17. Nf4 Nh5) 17. Nec3 {[%emt 0:05:29]} (17. Nf4 $11) 17... g5 {[%emt 0:07:20]} (17... Ne5 $17 18. Be2 Bc6) 18. Rbd1 {[%emt 0:01:31] [#]} (18. Ne2 $11 {remains equal.}) 18... Ne5 $1 $17 {[%emt 0:01:31]} 19. Be2 {[%emt 0:01:14]} g4 {[%emt 0:00:53] White must now prevent ...gxf3.} 20. f4 {[%emt 0:01:39] Strongly threatening Rxd8.} Ng6 {[%emt 0:00:29]} 21. Rxd8 {[%emt 0:00:37]} Rxd8 {[%emt 0:00:03]} 22. Rd1 {[%emt 0:00:34]} Rb8 {[%emt 0:00:02]} 23. Qd2 {[%emt 0:04:36]} Bc6 {[%emt 0:00:21]} 24. Ba1 {[%emt 0:02:48]} Bf8 {[%emt 0:04:05]} (24... Ne4 $17 25. Qe1 Nh4 26. Nxe4 Bxa4 27. Bxg7 Kxg7) 25. Nb2 $15 {[%emt 0:01:06]} Qb7 {[%emt 0:04:12]} (25... Rb3 $17 {[%cal Oc6g2] Hoping for ...Bxg2!} 26. Nd3 Rxa3) 26. Bf1 $11 {[%emt 0:00:10]} Qb3 {[%emt 0:05:08]} 27. a4 {[%emt 0:02:54] [#]} (27. Qe1 $11) 27... Ne4 $1 $17 {[%emt 0:03:31] 0x0.0022293457f3dp-1022s more active pieces.} 28. Nxe4 {[%emt 0:00:06]} Bxe4 {[%emt 0:00:05]} 29. Nd3 {[%emt 0:01:46]} Rd8 {[%emt 0:01:13]} ({But not} 29... Qxa4 30. Nf2 Bb1 31. Bf6 $11) ({Reject} 29... Qxc4 30. Ne5 Qxa4 31. Nd7 $14) 30. Be2 {[%emt 0:01:27]} Qxc4 {[%emt 0:00:52]} ({Black should try} 30... Qxa4 $17 31. Qc1 Qc6) 31. Qc3 {[%emt 0:00:30]} (31. Ne1 $1 $11 {was the only way to keep the balance.} Rxd2 32. Bxc4) 31... Qxc3 {[%emt 0:04:03]} 32. Bxc3 {[%emt 0:00:04]} c4 $36 {[%emt 0:05:49][%mdl 2048] Keeping White busy.} 33. Nb2 {[%emt 0:00:34]} Rxd1+ {[%emt 0:00:06]} 34. Nxd1 {[%emt 0:01:04]} Bc5 {[%emt 0:00:04]} 35. Bxc4 {[%emt 0:00:41]} (35. Kf1 $17) 35... Nxf4 $1 $19 {[%emt 0:00:13]} 36. Nf2 $2 {[%emt 0:00:18]} (36. Be5 Nd5 37. Bd4 Bxd4 38. exd4) 36... Bxe3 {[%emt 0:00:12] Weighted Error Value: White=0.36/Black=0.16 (very precise)} 0-1

[Event "Silver Lake Festival 2022"]
[Site "Veliko Gradiste"]
[Date "2022.06.19"]
[Round "1.4"]
[White "Sadikhov, Ulvi"]
[Black "Furman, Boris"]
[Result "1/2-1/2"]
[ECO "C00"]
[WhiteElo "2491"]
[BlackElo "2121"]
[Annotator "TA"]
[PlyCount "73"]
[EventDate "2022.06.16"]
[EventType "swiss"]
[EventCountry "SRB"]
[SourceTitle "playchess.com"]
[Source "ChessBase"]
[SourceQuality "1"]
[TimeControl "5400+30"]

{[%evp 17,73,0,0,0,0,-12,49,-17,22,12,27,37,10,7,12,7,18,6,12,6,12,21,10,-23,-16,-14,-6,-16,-4,-20,-14,-21,0,0,0,0,33,9,48,55,52,0,56,0,0,-14,-14,-14,-13,-13,-6,-6,-6,-8,0,0,8,0]} 1. Nf3 {[%emt 0:00:03]} d5 {[%emt 0:00:27]} 2. g3 {[%emt 0:00:07]} Nf6 {[%emt 0:00:25]} 3. Bg2 {[%emt 0:00:06]} e6 {[%emt 0:01:02]} 4. O-O {[%emt 0:00:58]} b5 {[%emt 0:00:34]} 5. d3 {[%emt 0:00:22]} Be7 {[%emt 0:01:06]} 6. Nbd2 {[%emt 0:00:51]} O-O {[%emt 0:00:35]} 7. e4 {[%emt 0:01:38]} c5 {[%emt 0:00:41]} 8. Re1 {[%emt 0:00:12]} Nc6 {[%emt 0:00:32]} 9. exd5 {[%emt 0:00:13]} exd5 {[%emt 0:01:11]} 10. a4 {[%emt 0:00:07] C00: French: Unusual White 2nd moves.} b4 {[%emt 0:00:31]} 11. Nb3 {[%emt 0:00:07]} h6 {[%emt 0:06:59]} (11... Bf5 $11) 12. Bf4 {[%emt 0:07:12] [#]} (12. Be3 $14) 12... Bg4 $146 {[%emt 0:07:28]} ({Predecessor:} 12... Be6 13. Qd2 Rc8 14. Ne5 Nxe5 15. Bxe5 Nd7 16. Bf4 Bg5 17. h4 Bxf4 18. Qxf4 Qf6 19. Qxf6 Nxf6 {1-0 (45) Bocharov,D (2558)-Johannessen,L (2487) Minsk 2015}) 13. h3 {[%emt 0:12:02]} Bh5 {[%emt 0:01:31]} 14. g4 {[%emt 0:05:40]} Bg6 {[%emt 0:00:26]} 15. Ne5 {[%emt 0:02:26]} Nxe5 {[%emt 0:01:09]} 16. Bxe5 {[%emt 0:00:09]} Bd6 {[%emt 0:02:40]} 17. f4 {[%emt 0:03:56]} Rc8 {[%emt 0:06:56]} 18. f5 {[%emt 0:08:28]} Bh7 {[%emt 0:00:56]} 19. Qf3 {[%emt 0:02:09]} Re8 {[%emt 0:04:39]} 20. Bxf6 {[%emt 0:16:04]} Qxf6 {[%emt 0:00:16]} 21. Qxd5 {[%emt 0:00:32]} Red8 {[%emt 0:02:03][%cal Od6h2] [#] Strongly threatening ...Bh2+!} 22. Qc4 {[%emt 0:09:38]} Qxb2 {[%emt 0:07:12]} 23. Bd5 {[%emt 0:04:00]} Qf6 {[%emt 0:00:44]} 24. Re2 {[%emt 0:06:22]} h5 {[%emt 0:03:52]} 25. Rae1 {[%emt 0:03:39]} hxg4 {[%emt 0:00:22]} 26. hxg4 {[%emt 0:00:09]} Kf8 {[%emt 0:06:46]} 27. Na5 {[%emt 0:07:46]} Re8 {[%emt 0:11:33]} (27... Bg3 $5 {[%cal Rg3e1]} 28. Rb1 Bb8 $11) 28. Rxe8+ {[%emt 0:06:56]} Rxe8 {[%emt 0:00:10]} 29. Rxe8+ {[%emt 0:00:05]} Kxe8 {[%emt 0:00:04]} 30. Qb5+ {[%emt 0:01:05]} ({White should play} 30. Nb7 $14) 30... Kf8 $11 {[%emt 0:01:06] [#] aiming for ...Qd4+. The position is equal.} 31. Qb7 {[%emt 0:00:48] Intending Qc8+ and mate. Active counter play!} g6 $1 {[%emt 0:02:46]} 32. Nc4 {[%emt 0:01:54]} Be7 {[%emt 0:01:57] White should prevent ...Qd4+.} 33. fxg6 {[%emt 0:00:43]} Bxg6 {[%emt 0:00:21] Threatens to win with ...Qd4+.} 34. Qb8+ {[%emt 0:00:21]} Kg7 {[%emt 0:03:31]} 35. Qe5 {[%emt 0:00:05]} b3 {[%emt 0:01:22]} 36. cxb3 {[%emt 0:00:29]} Bxd3 {[%emt 0:00:22]} 37. Kg2 {[%emt 0:01:07] Weighted Error Value: White=0.13 (very precise) /Black=0.12 (very precise)} 1/2-1/2

[Event "Silver Lake Festival 2022"]
[Site "Veliko Gradiste"]
[Date "2022.06.19"]
[Round "1.5"]
[White "Mamedov, Edgar"]
[Black "Song, Raymond"]
[Result "1/2-1/2"]
[ECO "D38"]
[WhiteElo "2004"]
[BlackElo "2485"]
[Annotator "TA"]
[PlyCount "79"]
[EventDate "2022.06.16"]
[EventType "swiss"]
[EventCountry "SRB"]
[SourceTitle "playchess.com"]
[Source "ChessBase"]
[SourceQuality "1"]
[TimeControl "5400+30"]

{[%evp 14,79,21,30,20,20,24,28,29,29,57,33,122,122,124,0,0,8,85,20,47,25,25,25,24,21,22,15,22,0,0,-16,-18,-59,-69,-60,-66,-89,-99,-141,-141,-141,-141,-138,-130,-138,-126,-111,-85,-113,-125,-127,-114,-132,-134,-126,-74,-73,-81,-91,0,0,97,-407,200,160,367,-411]} 1. d4 {[%emt 0:00:06]} Nf6 {[%emt 0:00:06]} 2. c4 {[%emt 0:00:17]} e6 {[%emt 0:00:06]} 3. Nf3 {[%emt 0:00:36]} d5 {[%emt 0:00:10]} 4. Nc3 {[%emt 0:00:39]} Bb4 {[%emt 0:00:49]} 5. Qa4+ {[%emt 0:00:55]} Nc6 {[%emt 0:00:06]} 6. Bg5 {[%emt 0:00:36]} h6 {[%emt 0:00:43]} 7. Bxf6 {[%emt 0:02:02]} Qxf6 {[%emt 0:00:07]} 8. e3 {[%emt 0:01:24]} O-O {[%emt 0:00:10] D38: Queen's Gambit Declined: Ragozin Defence (4 Nf3 Bb4).} 9. Rc1 {[%emt 0:03:32]} Bd7 {[%emt 0:00:27]} 10. cxd5 {[%emt 0:01:53]} exd5 {[%emt 0:00:13] White has an edge.} 11. Qb3 {[%emt 0:02:06]} a5 {[%emt 0:02:57] [#]} 12. a3 $146 {[%emt 0:06:32]} ({Predecessor:} 12. Bb5 a4 13. Bxa4 Bxc3+ 14. Rxc3 Na5 15. Qb4 Bxa4 16. Qxa4 Nc4 17. Qb3 c6 18. O-O {1-0 (57) Lomaia,D (1846)-Leitao,R (2592) Chess.com INT 2022}) 12... Bd6 {[%emt 0:32:41]} (12... Bxc3+ $14 13. Rxc3 Qd6) 13. Qxd5 $16 {[%emt 0:08:57]} Qg6 {[%emt 0:00:41]} 14. Ne5 {[%emt 0:22:17]} (14. g3 $16) 14... Bxe5 $11 {[%emt 0:09:04]} (14... Nxe5 15. dxe5 Bc6 16. Qd4 $14) 15. dxe5 {[%emt 0:02:20]} ({Of course not} 15. Qxd7 Rad8 16. Qh3 Bxd4 $1 $17) 15... Rad8 {[%emt 0:00:24]} (15... Be6 $11 16. Qb5 Rfd8) 16. Bd3 {[%emt 0:03:28]} (16. f4 $1 $16) 16... Qh5 {[%emt 0:04:58]} 17. Qe4 {[%emt 0:03:54][%csl Gd3][%cal Re4h7] Prevents Bf5.} g6 {[%emt 0:02:18]} 18. Be2 {[%emt 0:07:30]} Qxe5 {[%emt 0:00:06]} 19. Qxe5 {[%emt 0:00:54]} Nxe5 {[%emt 0:00:05]} 20. f4 {[%emt 0:07:22]} Ng4 {[%emt 0:00:05]} 21. Nd5 {[%emt 0:03:15] And now Bxg4 would win.} Be6 {[%emt 0:00:05]} 22. Bxg4 {[%emt 0:02:38]} Bxd5 {[%emt 0:01:47]} 23. Bf3 {[%emt 0:05:53]} Bxf3 {[%emt 0:00:54]} 24. gxf3 $15 {[%emt 0:00:04][%mdl 4096] Endgame KRR-KRR} Rd3 {[%emt 0:00:12]} 25. Ke2 {[%emt 0:01:15]} Rb3 {[%emt 0:02:17]} 26. Rhd1 {[%emt 0:04:04]} Rxb2+ {[%emt 0:00:39]} 27. Rd2 {[%emt 0:00:08]} Rxd2+ {[%emt 0:00:04]} 28. Kxd2 $17 {[%emt 0:00:06] KR-KR} Rd8+ {[%emt 0:00:05]} 29. Ke2 {[%emt 0:00:48]} c6 {[%emt 0:02:08]} 30. Rc5 {[%emt 0:02:31]} Ra8 {[%emt 0:10:08]} 31. a4 {[%emt 0:01:41]} Kg7 {[%emt 0:00:43]} 32. e4 {[%emt 0:01:31]} Kf6 {[%emt 0:00:23]} 33. f5 {[%emt 0:02:28]} g5 {[%emt 0:01:49]} 34. f4 {[%emt 0:01:04]} g4 {[%emt 0:04:29]} ({Not} 34... gxf4 35. Kf3) (34... Ra6 $142 $1 35. Kf3 b5 36. axb5 cxb5 37. Rxb5 (37. fxg5+ $2 hxg5 38. Rxb5 a4 $19) 37... a4) 35. Kf2 {[%emt 0:01:24]} h5 {[%emt 0:00:30] Threatens to win with ...Rd8.} 36. Kg3 {[%emt 0:00:30]} Re8 {[%emt 0:00:30]} (36... Rd8 $1 $17 {[%cal Rd8d3] Hoping for ...Rd3+.} 37. Kh4 Rd4) 37. Rc4 $11 {[%emt 0:00:30]} Ra8 {[%emt 0:00:05] [#]} (37... Kg7 $11 {remains equal.}) 38. e5+ $2 {[%emt 0:00:57][%mdl 8192]} (38. Kh4 $1 $16 {keeps the pressure on.}) 38... Ke7 $4 {[%emt 0:08:59][%mdl 8192] [#]} (38... Kxf5 $19 {and life is good for Black.} 39. Rc5 h4+ 40. Kxh4 Rh8+ 41. Kg3 Rh3+ 42. Kg2 Kxf4) 39. Kh4 $1 $18 {[%emt 0:00:20][%mdl 1024] White has strong compensation.} b5 $2 {[%emt 0:00:14]} (39... Kd7 $16) 40. Rd4 $4 {[%emt 0:00:21][%mdl 40960] Weighted Error Value: White=0.41/Black=0.47. An unexpected result.} (40. Rxc6 $18 {is the narrow road to win.} bxa4 41. Rc7+ Kf8 42. Kxh5) 1/2-1/2